Workbook

Sheet data
B2: TAB: OLS REGRESION DATA
B5: # | C5: Year | D5: Date | E5: EWR.Aug | F5: Linear | G5: Quadratic | H5: EWR.lag1 | I5: EWR.lag2 | J5: Aug.1st | K5: Aug.2nd
B6: 1 | C6: 2016 | D6: =DATE(C6, 8, 31) -> 2016-08-31 | E6: 83 | F6: =B6/31 -> 0.03225806452 | G6: =F6*F6 -> 0.001040582726 | H6: =E7 -> 76.5 | I6: =E8 -> 82.45 | J6: 0 | K6: 0
B7: =B6+1 -> 2 | C7: =C6 -> 2016 | D7: =D6-1 -> 2016-08-30 | E7: 76.5 | F7: 0.06451612903 | G7: =F7*F7 -> 0.004162330905 | H7: 82.45 | I7: 79.5 | J7: 0 | K7: 0
B8: =B7+1 -> 3 | C8: 2016 | D8: =D7-1 -> 2016-08-29 | E8: 82.45 | F8: 0.09677419355 | G8: 0.009365244537 | H8: 79.5 | I8: 79.55 | J8: 0 | K8: 0
B9: 4 | C9: 2016 | D9: 2016-08-28 | E9: 79.5 | F9: 0.1290322581 | G9: 0.01664932362 | H9: 79.55 | I9: 85 | J9: 0 | K9: 0
B10: 5 | C10: 2016 | D10: 2016-08-27 | E10: 79.55 | F10: 0.1612903226 | G10: 0.02601456816 | H10: 85 | I10: 77.45 | J10: 0 | K10: 0
B11: 6 | C11: 2016 | D11: 2016-08-26 | E11: 85 | F11: 0.1935483871 | G11: 0.03746097815 | H11: 77.45 | I11: 76.46 | J11: 0 | K11: 0
B12: 7 | C12: 2016 | D12: 2016-08-25 | E12: 77.45 | F12: 0.2258064516 | G12: 0.05098855359 | H12: 76.46 | I12: 71.51 | J12: 0 | K12: 0
B13: 8 | C13: 2016 | D13: 2016-08-24 | E13: 76.46 | F13: 0.2580645161 | G13: 0.06659729448 | H13: 71.51 | I13: 73.94 | J13: 0 | K13: 0
B14: 9 | C14: 2016 | D14: 2016-08-23 | E14: 71.51 | F14: 0.2903225806 | G14: 0.08428720083 | H14: 73.94 | I14: 80.51 | J14: 0 | K14: 0
B15: 10 | C15: 2016 | D15: 2016-08-22 | E15: 73.94 | F15: 0.3225806452 | G15: 0.1040582726 | H15: 80.51 | I15: 79.52 | J15: 0 | K15: 0
B16: 11 | C16: 2016 | D16: 2016-08-21 | E16: 80.51 | F16: 0.3548387097 | G16: 0.1259105099 | H16: 79.52 | I16: 82 | J16: 0 | K16: 0
B17: 12 | C17: 2016 | D17: 2016-08-20 | E17: 79.52 | F17: 0.3870967742 | G17: 0.1498439126 | H17: 82 | I17: 80.05 | J17: 0 | K17: 0
B18: 13 | C18: 2016 | D18: 2016-08-19 | E18: 82 | F18: 0.4193548387 | G18: 0.1758584807 | H18: 80.05 | I18: 82 | J18: 0 | K18: 0
B19: 14 | C19: 2016 | D19: 2016-08-18 | E19: 80.05 | F19: 0.4516129032 | G19: 0.2039542144 | H19: 82 | I19: 85.01 | J19: 0 | K19: 0
B20: 15 | C20: 2016 | D20: 2016-08-17 | E20: 82 | F20: 0.4838709677 | G20: 0.2341311134 | H20: 85.01 | I20: 85.45 | J20: 0 | K20: 0
B21: 16 | C21: 2016 | D21: 2016-08-16 | E21: 85.01 | F21: 0.5161290323 | G21: 0.2663891779 | H21: 85.45 | I21: 88.5 | J21: 0 | K21: 0
B22: 17 | C22: 2016 | D22: 2016-08-15 | E22: 85.45 | F22: 0.5483870968 | G22: 0.3007284079 | H22: 88.5 | I22: 88.5 | J22: 0 | K22: 0
B23: 18 | C23: 2016 | D23: 2016-08-14 | E23: 88.5 | F23: 0.5806451613 | G23: 0.3371488033 | H23: 88.5 | I23: 85.5 | J23: 0 | K23: 0
B24: 19 | C24: 2016 | D24: 2016-08-13 | E24: 88.5 | F24: 0.6129032258 | G24: 0.3756503642 | H24: 85.5 | I24: 85.5 | J24: 0 | K24: 0
B25: 20 | C25: 2016 | D25: 2016-08-12 | E25: 85.5 | F25: 0.6451612903 | G25: 0.4162330905 | H25: 85.5 | I25: 82.49 | J25: 0 | K25: 0
B26: 21 | C26: 2016 | D26: 2016-08-11 | E26: 85.5 | F26: 0.6774193548 | G26: 0.4588969823 | H26: 82.49 | I26: 77.55 | J26: 0 | K26: 0
B27: 22 | C27: 2016 | D27: 2016-08-10 | E27: 82.49 | F27: 0.7096774194 | G27: 0.5036420395 | H27: 77.55 | I27: 78.08 | J27: 0 | K27: 0
B28: 23 | C28: 2016 | D28: 2016-08-09 | E28: 77.55 | F28: 0.7419354839 | G28: 0.5504682622 | H28: 78.08 | I28: 80.08 | J28: 0 | K28: 0
B29: 24 | C29: 2016 | D29: 2016-08-08 | E29: 78.08 | F29: 0.7741935484 | G29: 0.5993756504 | H29: 80.08 | I29: 81.5 | J29: 0 | K29: 0
B30: 25 | C30: 2016 | D30: 2016-08-07 | E30: 80.08 | F30: 0.8064516129 | G30: 0.650364204 | H30: 81.5 | I30: 75.47 | J30: 0 | K30: 0
B31: 26 | C31: 2016 | D31: 2016-08-06 | E31: 81.5 | F31: 0.8387096774 | G31: 0.703433923 | H31: 75.47 | I31: 72.5 | J31: 0 | K31: 0
B32: 27 | C32: 2016 | D32: 2016-08-05 | E32: 75.47 | F32: 0.8709677419 | G32: 0.7585848075 | H32: 72.5 | I32: 72.5 | J32: 0 | K32: 0
B33: 28 | C33: 2016 | D33: 2016-08-04 | E33: 72.5 | F33: 0.9032258065 | G33: 0.8158168574 | H33: 72.5 | I33: 73.49 | J33: 0 | K33: 0
B34: 29 | C34: 2016 | D34: 2016-08-03 | E34: 72.5 | F34: 0.935483871 | G34: 0.8751300728 | H34: 73.49 | I34: 75 | J34: 0 | K34: 0
B35: 30 | C35: 2016 | D35: 2016-08-02 | E35: 73.49 | F35: 0.9677419355 | G35: 0.9365244537 | H35: 75 | I35: 0 | J35: 0 | K35: 1
B36: 31 | C36: 2016 | D36: 2016-08-01 | E36: 75 | F36: 1 | G36: 1 | H36: 0 | I36: 0 | J36: 1 | K36: 0
B37: 32 | C37: =C6-1 -> 2015 | D37: =DATE(C37, 8, 31) -> 2015-08-31 | E37: 84.5 | F37: =F6 -> 0.03225806452 | G37: =G6 -> 0.001040582726 | H37: =E38 -> 79 | I37: =E39 -> 75.5 | J37: 0 | K37: 0
B38: 33 | C38: 2015 | D38: =D37-1 -> 2015-08-30 | E38: 79 | F38: =F7 -> 0.06451612903 | G38: 0.004162330905 | H38: 75.5 | I38: 73 | J38: 0 | K38: 0
B39: 34 | C39: 2015 | D39: 2015-08-29 | E39: 75.5 | F39: 0.09677419355 | G39: 0.009365244537 | H39: 73 | I39: 74 | J39: 0 | K39: 0
B40: 35 | C40: 2015 | D40: 2015-08-28 | E40: 73 | F40: 0.1290322581 | G40: 0.01664932362 | H40: 74 | I40: 75.5 | J40: 0 | K40: 0
B41: 36 | C41: 2015 | D41: 2015-08-27 | E41: 74 | F41: 0.1612903226 | G41: 0.02601456816 | H41: 75.5 | I41: 83 | J41: 0 | K41: 0
B42: 37 | C42: 2015 | D42: 2015-08-26 | E42: 75.5 | F42: 0.1935483871 | G42: 0.03746097815 | H42: 83 | I42: 78.5 | J42: 0 | K42: 0
B43: 38 | C43: 2015 | D43: 2015-08-25 | E43: 83 | F43: 0.2258064516 | G43: 0.05098855359 | H43: 78.5 | I43: 75 | J43: 0 | K43: 0
B44: 39 | C44: 2015 | D44: 2015-08-24 | E44: 78.5 | F44: 0.2580645161 | G44: 0.06659729448 | H44: 75 | I44: 77.5 | J44: 0 | K44: 0
B45: 40 | C45: 2015 | D45: 2015-08-23 | E45: 75 | F45: 0.2903225806 | G45: 0.08428720083 | H45: 77.5 | I45: 80.5 | J45: 0 | K45: 0
B46: 41 | C46: 2015 | D46: 2015-08-22 | E46: 77.5 | F46: 0.3225806452 | G46: 0.1040582726 | H46: 80.5 | I46: 81.5 | J46: 0 | K46: 0
B47: 42 | C47: 2015 | D47: 2015-08-21 | E47: 80.5 | F47: 0.3548387097 | G47: 0.1259105099 | H47: 81.5 | I47: 81 | J47: 0 | K47: 0
B48: 43 | C48: 2015 | D48: 2015-08-20 | E48: 81.5 | F48: 0.3870967742 | G48: 0.1498439126 | H48: 81 | I48: 84 | J48: 0 | K48: 0
B49: 44 | C49: 2015 | D49: 2015-08-19 | E49: 81 | F49: 0.4193548387 | G49: 0.1758584807 | H49: 84 | I49: 85 | J49: 0 | K49: 0
B50: 45 | C50: 2015 | D50: 2015-08-18 | E50: 84 | F50: 0.4516129032 | G50: 0.2039542144 | H50: 85 | I50: 84 | J50: 0 | K50: 0
B51: 46 | C51: 2015 | D51: 2015-08-17 | E51: 85 | F51: 0.4838709677 | G51: 0.2341311134 | H51: 84 | I51: 81 | J51: 0 | K51: 0
B52: 47 | C52: 2015 | D52: 2015-08-16 | E52: 84 | F52: 0.5161290323 | G52: 0.2663891779 | H52: 81 | I52: 76.5 | J52: 0 | K52: 0
B53: 48 | C53: 2015 | D53: 2015-08-15 | E53: 81 | F53: 0.5483870968 | G53: 0.3007284079 | H53: 76.5 | I53: 76.5 | J53: 0 | K53: 0
B54: 49 | C54: 2015 | D54: 2015-08-14 | E54: 76.5 | F54: =F23 -> 0.5806451613 | G54: 0.3371488033 | H54: 76.5 | I54: 78 | J54: 0 | K54: 0
B55: 50 | C55: 2015 | D55: 2015-08-13 | E55: 76.5 | F55: 0.6129032258 | G55: 0.3756503642 | H55: 78 | I55: 76.5 | J55: 0 | K55: 0
B56: 51 | C56: 2015 | D56: 2015-08-12 | E56: 78 | F56: 0.6451612903 | G56: 0.4162330905 | H56: 76.5 | I56: 74.5 | J56: 0 | K56: 0
B57: 52 | C57: 2015 | D57: 2015-08-11 | E57: 76.5 | F57: 0.6774193548 | G57: 0.4588969823 | H57: 74.5 | I57: 77 | J57: 0 | K57: 0
B58: 53 | C58: 2015 | D58: 2015-08-10 | E58: 74.5 | F58: 0.7096774194 | G58: 0.5036420395 | H58: 77 | I58: 74 | J58: 0 | K58: 0
B59: 54 | C59: 2015 | D59: 2015-08-09 | E59: 77 | F59: 0.7419354839 | G59: 0.5504682622 | H59: 74 | I59: 75.5 | J59: 0 | K59: 0
B60: 55 | C60: 2015 | D60: 2015-08-08 | E60: 74 | F60: 0.7741935484 | G60: 0.5993756504 | H60: 75.5 | I60: 75.5 | J60: 0 | K60: 0
B61: 56 | C61: 2015 | D61: 2015-08-07 | E61: 75.5 | F61: 0.8064516129 | G61: 0.650364204 | H61: 75.5 | I61: 79.5 | J61: 0 | K61: 0
B62: 57 | C62: 2015 | D62: 2015-08-06 | E62: 75.5 | F62: 0.8387096774 | G62: 0.703433923 | H62: 79.5 | I62: 81 | J62: 0 | K62: 0
B63: 58 | C63: 2015 | D63: 2015-08-05 | E63: 79.5 | F63: 0.8709677419 | G63: 0.7585848075 | H63: 81 | I63: 81.5 | J63: 0 | K63: 0
B64: 59 | C64: 2015 | D64: 2015-08-04 | E64: 81 | F64: 0.9032258065 | G64: 0.8158168574 | H64: 81.5 | I64: 79 | J64: 0 | K64: 0
B65: 60 | C65: 2015 | D65: 2015-08-03 | E65: 81.5 | F65: 0.935483871 | G65: 0.8751300728 | H65: 79 | I65: 82 | J65: 0 | K65: 0
B66: 61 | C66: 2015 | D66: 2015-08-02 | E66: 79 | F66: 0.9677419355 | G66: 0.9365244537 | H66: 82 | I66: 0 | J66: 0 | K66: 1
B67: 62 | C67: 2015 | D67: 2015-08-01 | E67: 82 | F67: 1 | G67: 1 | H67: 0 | I67: 0 | J67: 1 | K67: 0
B68: 63 | C68: 2014 | D68: =DATE(C68, 8, 31) -> 2014-08-31 | E68: 82 | F68: =F37 -> 0.03225806452 | G68: =G37 -> 0.001040582726 | H68: =E69 -> 70 | I68: =E70 -> 70 | J68: 0 | K68: 0
B69: 64 | C69: 2014 | D69: =D68-1 -> 2014-08-30 | E69: 70 | F69: =F38 -> 0.06451612903 | G69: 0.004162330905 | H69: 70 | I69: 74 | J69: 0 | K69: 0
B70: 65 | C70: 2014 | D70: 2014-08-29 | E70: 70 | F70: 0.09677419355 | G70: 0.009365244537 | H70: 74 | I70: 80 | J70: 0 | K70: 0
B71: 66 | C71: 2014 | D71: 2014-08-28 | E71: 74 | F71: 0.1290322581 | G71: 0.01664932362 | H71: 80 | I71: 77.5 | J71: 0 | K71: 0
B72: =B71+1 -> 67 | C72: 2014 | D72: 2014-08-27 | E72: 80 | F72: 0.1612903226 | G72: 0.02601456816 | H72: 77.5 | I72: 74 | J72: 0 | K72: 0
B73: 68 | C73: 2014 | D73: 2014-08-26 | E73: 77.5 | F73: 0.1935483871 | G73: 0.03746097815 | H73: 74 | I73: 72 | J73: 0 | K73: 0
B74: 69 | C74: 2014 | D74: 2014-08-25 | E74: 74 | F74: 0.2258064516 | G74: 0.05098855359 | H74: 72 | I74: 71 | J74: 0 | K74: 0
B75: 70 | C75: 2014 | D75: 2014-08-24 | E75: 72 | F75: 0.2580645161 | G75: 0.06659729448 | H75: 71 | I75: 72 | J75: 0 | K75: 0
B76: 71 | C76: 2014 | D76: 2014-08-23 | E76: 71 | F76: 0.2903225806 | G76: 0.08428720083 | H76: 72 | I76: 73 | J76: 0 | K76: 0
B77: 72 | C77: 2014 | D77: 2014-08-22 | E77: 72 | F77: 0.3225806452 | G77: 0.1040582726 | H77: 73 | I77: 76 | J77: 0 | K77: 0
B78: 73 | C78: 2014 | D78: 2014-08-21 | E78: 73 | F78: 0.3548387097 | G78: 0.1259105099 | H78: 76 | I78: 72.5 | J78: 0 | K78: 0
B79: 74 | C79: 2014 | D79: 2014-08-20 | E79: 76 | F79: 0.3870967742 | G79: 0.1498439126 | H79: 72.5 | I79: 73.5 | J79: 0 | K79: 0
B80: 75 | C80: 2014 | D80: 2014-08-19 | E80: 72.5 | F80: 0.4193548387 | G80: 0.1758584807 | H80: 73.5 | I80: 75.5 | J80: 0 | K80: 0
B81: 76 | C81: 2014 | D81: 2014-08-18 | E81: 73.5 | F81: 0.4516129032 | G81: 0.2039542144 | H81: 75.5 | I81: 69.5 | J81: 0 | K81: 0
B82: 77 | C82: 2014 | D82: 2014-08-17 | E82: 75.5 | F82: 0.4838709677 | G82: 0.2341311134 | H82: 69.5 | I82: 67 | J82: 0 | K82: 0
B83: 78 | C83: 2014 | D83: 2014-08-16 | E83: 69.5 | F83: 0.5161290323 | G83: 0.2663891779 | H83: 67 | I83: 71.5 | J83: 0 | K83: 0
B84: 79 | C84: 2014 | D84: 2014-08-15 | E84: 67 | F84: 0.5483870968 | G84: 0.3007284079 | H84: 71.5 | I84: 77.5 | J84: 0 | K84: 0
B85: 80 | C85: 2014 | D85: 2014-08-14 | E85: 71.5 | F85: =F54 -> 0.5806451613 | G85: 0.3371488033 | H85: 77.5 | I85: 76 | J85: 0 | K85: 0
B86: 81 | C86: 2014 | D86: 2014-08-13 | E86: 77.5 | F86: 0.6129032258 | G86: 0.3756503642 | H86: 76 | I86: 76.5 | J86: 0 | K86: 0
B87: 82 | C87: 2014 | D87: 2014-08-12 | E87: 76 | F87: 0.6451612903 | G87: 0.4162330905 | H87: 76.5 | I87: 76 | J87: 0 | K87: 0
B88: 83 | C88: 2014 | D88: 2014-08-11 | E88: 76.5 | F88: 0.6774193548 | G88: 0.4588969823 | H88: 76 | I88: 76.5 | J88: 0 | K88: 0
B89: 84 | C89: 2014 | D89: 2014-08-10 | E89: 76 | F89: 0.7096774194 | G89: 0.5036420395 | H89: 76.5 | I89: 73 | J89: 0 | K89: 0
B90: 85 | C90: 2014 | D90: 2014-08-09 | E90: 76.5 | F90: 0.7419354839 | G90: 0.5504682622 | H90: 73 | I90: 76 | J90: 0 | K90: 0
B91: 86 | C91: 2014 | D91: 2014-08-08 | E91: 73 | F91: 0.7741935484 | G91: 0.5993756504 | H91: 76 | I91: 78.5 | J91: 0 | K91: 0
B92: 87 | C92: 2014 | D92: 2014-08-07 | E92: 76 | F92: 0.8064516129 | G92: 0.650364204 | H92: 78.5 | I92: 78.5 | J92: 0 | K92: 0
B93: 88 | C93: 2014 | D93: 2014-08-06 | E93: 78.5 | F93: 0.8387096774 | G93: 0.703433923 | H93: 78.5 | I93: 77.5 | J93: 0 | K93: 0
B94: 89 | C94: 2014 | D94: 2014-08-05 | E94: 78.5 | F94: 0.8709677419 | G94: 0.7585848075 | H94: 77.5 | I94: 72.5 | J94: 0 | K94: 0
B95: 90 | C95: 2014 | D95: 2014-08-04 | E95: 77.5 | F95: 0.9032258065 | G95: 0.8158168574 | H95: 72.5 | I95: 71 | J95: 0 | K95: 0
B96: 91 | C96: 2014 | D96: 2014-08-03 | E96: 72.5 | F96: 0.935483871 | G96: 0.8751300728 | H96: 71 | I96: 77.5 | J96: 0 | K96: 0
B97: 92 | C97: 2014 | D97: 2014-08-02 | E97: 71 | F97: 0.9677419355 | G97: 0.9365244537 | H97: 77.5 | I97: 0 | J97: 0 | K97: 1
B98: 93 | C98: 2014 | D98: 2014-08-01 | E98: 77.5 | F98: 1 | G98: 1 | H98: 0 | I98: 0 | J98: 1 | K98: 0
B99: 94 | C99: 2013 | D99: =DATE(C99, 8, 31) -> 2013-08-31 | E99: 80 | F99: =F68 -> 0.03225806452 | G99: =G68 -> 0.001040582726 | H99: =E100 -> 78 | I99: =E101 -> 76 | J99: 0 | K99: 0
B100: 95 | C100: 2013 | D100: =D99-1 -> 2013-08-30 | E100: 78 | F100: =F69 -> 0.06451612903 | G100: 0.004162330905 | H100: 76 | I100: 78.5 | J100: 0 | K100: 0
B101: 96 | C101: =C70-1 -> 2013 | D101: 2013-08-29 | E101: 76 | F101: 0.09677419355 | G101: 0.009365244537 | H101: 78.5 | I101: 81 | J101: 0 | K101: 0
B102: 97 | C102: 2013 | D102: 2013-08-28 | E102: 78.5 | F102: 0.1290322581 | G102: 0.01664932362 | H102: 81 | I102: 76.5 | J102: 0 | K102: 0
B103: 98 | C103: 2013 | D103: 2013-08-27 | E103: 81 | F103: 0.1612903226 | G103: 0.02601456816 | H103: 76.5 | I103: 72.05 | J103: 0 | K103: 0
B104: 99 | C104: 2013 | D104: 2013-08-26 | E104: 76.5 | F104: 0.1935483871 | G104: 0.03746097815 | H104: 72.05 | I104: 71 | J104: 0 | K104: 0
B105: 100 | C105: 2013 | D105: 2013-08-25 | E105: 72.05 | F105: 0.2258064516 | G105: 0.05098855359 | H105: 71 | I105: 76 | J105: 0 | K105: 0
B106: 101 | C106: 2013 | D106: 2013-08-24 | E106: 71 | F106: 0.2580645161 | G106: 0.06659729448 | H106: 76 | I106: 75 | J106: 0 | K106: 0
B107: 102 | C107: 2013 | D107: 2013-08-23 | E107: 76 | F107: 0.2903225806 | G107: 0.08428720083 | H107: 75 | I107: 79.5 | J107: 0 | K107: 0
B108: 103 | C108: 2013 | D108: 2013-08-22 | E108: 75 | F108: 0.3225806452 | G108: 0.1040582726 | H108: 79.5 | I108: 77 | J108: 0 | K108: 0
B109: 104 | C109: 2013 | D109: 2013-08-21 | E109: 79.5 | F109: 0.3548387097 | G109: 0.1259105099 | H109: 77 | I109: 71.5 | J109: 0 | K109: 0
B110: 105 | C110: 2013 | D110: 2013-08-20 | E110: 77 | F110: 0.3870967742 | G110: 0.1498439126 | H110: 71.5 | I110: 71.5 | J110: 0 | K110: 0
B111: 106 | C111: 2013 | D111: 2013-08-19 | E111: 71.5 | F111: 0.4193548387 | G111: 0.1758584807 | H111: 71.5 | I111: 72.5 | J111: 0 | K111: 0
B112: 107 | C112: 2013 | D112: 2013-08-18 | E112: 71.5 | F112: 0.4516129032 | G112: 0.2039542144 | H112: 72.5 | I112: 69.5 | J112: 0 | K112: 0
B113: 108 | C113: 2013 | D113: 2013-08-17 | E113: 72.5 | F113: 0.4838709677 | G113: 0.2341311134 | H113: 69.5 | I113: 69 | J113: 0 | K113: 0
B114: 109 | C114: 2013 | D114: 2013-08-16 | E114: 69.5 | F114: 0.5161290323 | G114: 0.2663891779 | H114: 69 | I114: 68.5 | J114: 0 | K114: 0
B115: 110 | C115: 2013 | D115: 2013-08-15 | E115: 69 | F115: 0.5483870968 | G115: 0.3007284079 | H115: 68.5 | I115: 74.5 | J115: 0 | K115: 0
B116: 111 | C116: 2013 | D116: 2013-08-14 | E116: 68.5 | F116: =F85 -> 0.5806451613 | G116: 0.3371488033 | H116: 74.5 | I116: 76.5 | J116: 0 | K116: 0
B117: 112 | C117: 2013 | D117: 2013-08-13 | E117: 74.5 | F117: 0.6129032258 | G117: 0.3756503642 | H117: 76.5 | I117: 73.49 | J117: 0 | K117: 0
B118: 113 | C118: 2013 | D118: 2013-08-12 | E118: 76.5 | F118: 0.6451612903 | G118: 0.4162330905 | H118: 73.49 | I118: 76.46 | J118: 0 | K118: 0
B119: 114 | C119: 2013 | D119: 2013-08-11 | E119: 73.49 | F119: 0.6774193548 | G119: 0.4588969823 | H119: 76.46 | I119: 80.95 | J119: 0 | K119: 0
B120: 115 | C120: 2013 | D120: 2013-08-10 | E120: 76.46 | F120: 0.7096774194 | G120: 0.5036420395 | H120: 80.95 | I120: 77 | J120: 0 | K120: 0
B121: 116 | C121: 2013 | D121: 2013-08-09 | E121: 80.95 | F121: 0.7419354839 | G121: 0.5504682622 | H121: 77 | I121: 74.5 | J121: 0 | K121: 0
B122: 117 | C122: 2013 | D122: 2013-08-08 | E122: 77 | F122: 0.7741935484 | G122: 0.5993756504 | H122: 74.5 | I122: 71 | J122: 0 | K122: 0
B123: 118 | C123: 2013 | D123: 2013-08-07 | E123: 74.5 | F123: 0.8064516129 | G123: 0.650364204 | H123: 71 | I123: 71 | J123: 0 | K123: 0
B124: 119 | C124: 2013 | D124: 2013-08-06 | E124: 71 | F124: 0.8387096774 | G124: 0.703433923 | H124: 71 | I124: 73 | J124: 0 | K124: 0
B125: 120 | C125: 2013 | D125: 2013-08-05 | E125: 71 | F125: 0.8709677419 | G125: 0.7585848075 | H125: 73 | I125: 74.6 | J125: 0 | K125: 0
B126: 121 | C126: 2013 | D126: 2013-08-04 | E126: 73 | F126: 0.9032258065 | G126: 0.8158168574 | H126: 74.6 | I126: 77 | J126: 0 | K126: 0
B127: 122 | C127: 2013 | D127: 2013-08-03 | E127: 74.6 | F127: 0.935483871 | G127: 0.8751300728 | H127: 77 | I127: 71.5 | J127: 0 | K127: 0
B128: 123 | C128: 2013 | D128: 2013-08-02 | E128: 77 | F128: 0.9677419355 | G128: 0.9365244537 | H128: 71.5 | I128: 0 | J128: 0 | K128: 1
B129: 124 | C129: 2013 | D129: 2013-08-01 | E129: 71.5 | F129: 1 | G129: 1 | H129: 0 | I129: 0 | J129: 1 | K129: 0
B130: 125 | C130: 2012 | D130: =DATE(C130, 8, 31) -> 2012-08-31 | E130: 78.5 | F130: =F99 -> 0.03225806452 | G130: =G99 -> 0.001040582726 | H130: =E131 -> 73 | I130: =E132 -> 74 | J130: 0 | K130: 0
B131: 126 | C131: 2012 | D131: =D130-1 -> 2012-08-30 | E131: 73 | F131: =F100 -> 0.06451612903 | G131: 0.004162330905 | H131: 74 | I131: 81.5 | J131: 0 | K131: 0
B132: 127 | C132: 2012 | D132: 2012-08-29 | E132: 74 | F132: 0.09677419355 | G132: 0.009365244537 | H132: 81.5 | I132: 76.5 | J132: 0 | K132: 0
B133: 128 | C133: 2012 | D133: 2012-08-28 | E133: 81.5 | F133: 0.1290322581 | G133: 0.01664932362 | H133: 76.5 | I133: 75.5 | J133: 0 | K133: 0
B134: 129 | C134: 2012 | D134: 2012-08-27 | E134: 76.5 | F134: 0.1612903226 | G134: 0.02601456816 | H134: 75.5 | I134: 77.5 | J134: 0 | K134: 0
B135: 130 | C135: 2012 | D135: 2012-08-26 | E135: 75.5 | F135: 0.1935483871 | G135: 0.03746097815 | H135: 77.5 | I135: 78.5 | J135: 0 | K135: 0
B136: =B135+1 -> 131 | C136: 2012 | D136: 2012-08-25 | E136: 77.5 | F136: 0.2258064516 | G136: 0.05098855359 | H136: 78.5 | I136: 76 | J136: 0 | K136: 0
B137: 132 | C137: 2012 | D137: 2012-08-24 | E137: 78.5 | F137: 0.2580645161 | G137: 0.06659729448 | H137: 76 | I137: 76 | J137: 0 | K137: 0
B138: 133 | C138: 2012 | D138: 2012-08-23 | E138: 76 | F138: 0.2903225806 | G138: 0.08428720083 | H138: 76 | I138: 75 | J138: 0 | K138: 0
B139: 134 | C139: 2012 | D139: 2012-08-22 | E139: 76 | F139: 0.3225806452 | G139: 0.1040582726 | H139: 75 | I139: 72 | J139: 0 | K139: 0
B140: 135 | C140: 2012 | D140: 2012-08-21 | E140: 75 | F140: 0.3548387097 | G140: 0.1259105099 | H140: 72 | I140: 67.5 | J140: 0 | K140: 0
B141: 136 | C141: 2012 | D141: 2012-08-20 | E141: 72 | F141: 0.3870967742 | G141: 0.1498439126 | H141: 67.5 | I141: 73.5 | J141: 0 | K141: 0
B142: 137 | C142: 2012 | D142: 2012-08-19 | E142: 67.5 | F142: 0.4193548387 | G142: 0.1758584807 | H142: 73.5 | I142: 79 | J142: 0 | K142: 0
B143: 138 | C143: 2012 | D143: 2012-08-18 | E143: 73.5 | F143: 0.4516129032 | G143: 0.2039542144 | H143: 79 | I143: 78 | J143: 0 | K143: 0
B144: 139 | C144: 2012 | D144: 2012-08-17 | E144: 79 | F144: 0.4838709677 | G144: 0.2341311134 | H144: 78 | I144: 77.5 | J144: 0 | K144: 0
B145: 140 | C145: 2012 | D145: 2012-08-16 | E145: 78 | F145: 0.5161290323 | G145: 0.2663891779 | H145: 77.5 | I145: 74.5 | J145: 0 | K145: 0
B146: 141 | C146: 2012 | D146: 2012-08-15 | E146: 77.5 | F146: 0.5483870968 | G146: 0.3007284079 | H146: 74.5 | I146: 78 | J146: 0 | K146: 0
B147: 142 | C147: 2012 | D147: 2012-08-14 | E147: 74.5 | F147: =F116 -> 0.5806451613 | G147: 0.3371488033 | H147: 78 | I147: 80.5 | J147: 0 | K147: 0
B148: 143 | C148: 2012 | D148: 2012-08-13 | E148: 78 | F148: 0.6129032258 | G148: 0.3756503642 | H148: 80.5 | I148: 82 | J148: 0 | K148: 0
B149: 144 | C149: 2012 | D149: 2012-08-12 | E149: 80.5 | F149: 0.6451612903 | G149: 0.4162330905 | H149: 82 | I149: 77 | J149: 0 | K149: 0
B150: 145 | C150: 2012 | D150: 2012-08-11 | E150: 82 | F150: 0.6774193548 | G150: 0.4588969823 | H150: 77 | I150: 81.5 | J150: 0 | K150: 0
B151: 146 | C151: 2012 | D151: 2012-08-10 | E151: 77 | F151: 0.7096774194 | G151: 0.5036420395 | H151: 81.5 | I151: 80 | J151: 0 | K151: 0
B152: 147 | C152: 2012 | D152: 2012-08-09 | E152: 81.5 | F152: 0.7419354839 | G152: 0.5504682622 | H152: 80 | I152: 74.5 | J152: 0 | K152: 0
B153: 148 | C153: 2012 | D153: 2012-08-08 | E153: 80 | F153: 0.7741935484 | G153: 0.5993756504 | H153: 74.5 | I153: 81.5 | J153: 0 | K153: 0
B154: 149 | C154: 2012 | D154: 2012-08-07 | E154: 74.5 | F154: 0.8064516129 | G154: 0.650364204 | H154: 81.5 | I154: 84.5 | J154: 0 | K154: 0
B155: 150 | C155: 2012 | D155: 2012-08-06 | E155: 81.5 | F155: 0.8387096774 | G155: 0.703433923 | H155: 84.5 | I155: 83 | J155: 0 | K155: 0
B156: 151 | C156: 2012 | D156: 2012-08-05 | E156: 84.5 | F156: 0.8709677419 | G156: 0.7585848075 | H156: 83 | I156: 83.5 | J156: 0 | K156: 0
B157: 152 | C157: 2012 | D157: 2012-08-04 | E157: 83 | F157: 0.9032258065 | G157: 0.8158168574 | H157: 83.5 | I157: 80.5 | J157: 0 | K157: 0
B158: 153 | C158: 2012 | D158: 2012-08-03 | E158: 83.5 | F158: 0.935483871 | G158: 0.8751300728 | H158: 80.5 | I158: 75.5 | J158: 0 | K158: 0
B159: 154 | C159: 2012 | D159: 2012-08-02 | E159: 80.5 | F159: 0.9677419355 | G159: 0.9365244537 | H159: 75.5 | I159: 0 | J159: 0 | K159: 1
B160: 155 | C160: 2012 | D160: 2012-08-01 | E160: 75.5 | F160: 1 | G160: 1 | H160: 0 | I160: 0 | J160: 1 | K160: 0
B161: 156 | C161: 2011 | D161: =DATE(C161, 8, 31) -> 2011-08-31 | E161: 74.5 | F161: =F130 -> 0.03225806452 | G161: =G130 -> 0.001040582726 | H161: =E162 -> 72.5 | I161: =E163 -> 68 | J161: 0 | K161: 0
B162: 157 | C162: =C161 -> 2011 | D162: =D161-1 -> 2011-08-30 | E162: 72.5 | F162: =F131 -> 0.06451612903 | G162: 0.004162330905 | H162: 68 | I162: 71 | J162: 0 | K162: 0
B163: 158 | C163: 2011 | D163: 2011-08-29 | E163: 68 | F163: 0.09677419355 | G163: 0.009365244537 | H163: 71 | I163: 77 | J163: 0 | K163: 0
B164: 159 | C164: 2011 | D164: 2011-08-28 | E164: 71 | F164: 0.1290322581 | G164: 0.01664932362 | H164: 77 | I164: 78.5 | J164: 0 | K164: 0
B165: 160 | C165: 2011 | D165: 2011-08-27 | E165: 77 | F165: 0.1612903226 | G165: 0.02601456816 | H165: 78.5 | I165: 76.5 | J165: 0 | K165: 0
B166: 161 | C166: 2011 | D166: 2011-08-26 | E166: 78.5 | F166: 0.1935483871 | G166: 0.03746097815 | H166: 76.5 | I166: 72.5 | J166: 0 | K166: 0
B167: 162 | C167: 2011 | D167: 2011-08-25 | E167: 76.5 | F167: 0.2258064516 | G167: 0.05098855359 | H167: 72.5 | I167: 72 | J167: 0 | K167: 0
B168: 163 | C168: 2011 | D168: 2011-08-24 | E168: 72.5 | F168: 0.2580645161 | G168: 0.06659729448 | H168: 72 | I168: 74.5 | J168: 0 | K168: 0
B169: 164 | C169: 2011 | D169: 2011-08-23 | E169: 72 | F169: 0.2903225806 | G169: 0.08428720083 | H169: 74.5 | I169: 79.5 | J169: 0 | K169: 0
B170: 165 | C170: 2011 | D170: 2011-08-22 | E170: 74.5 | F170: 0.3225806452 | G170: 0.1040582726 | H170: 79.5 | I170: 77 | J170: 0 | K170: 0
B171: 166 | C171: 2011 | D171: 2011-08-21 | E171: 79.5 | F171: 0.3548387097 | G171: 0.1259105099 | H171: 77 | I171: 76.5 | J171: 0 | K171: 0
B172: 167 | C172: 2011 | D172: 2011-08-20 | E172: 77 | F172: 0.3870967742 | G172: 0.1498439126 | H172: 76.5 | I172: 78 | J172: 0 | K172: 0
B173: 168 | C173: 2011 | D173: 2011-08-19 | E173: 76.5 | F173: 0.4193548387 | G173: 0.1758584807 | H173: 78 | I173: 77.5 | J173: 0 | K173: 0
B174: 169 | C174: 2011 | D174: 2011-08-18 | E174: 78 | F174: 0.4516129032 | G174: 0.2039542144 | H174: 77.5 | I174: 73.5 | J174: 0 | K174: 0
B175: 170 | C175: 2011 | D175: 2011-08-17 | E175: 77.5 | F175: 0.4838709677 | G175: 0.2341311134 | H175: 73.5 | I175: 75.5 | J175: 0 | K175: 0
B176: 171 | C176: 2011 | D176: 2011-08-16 | E176: 73.5 | F176: 0.5161290323 | G176: 0.2663891779 | H176: 75.5 | I176: 71.5 | J176: 0 | K176: 0
B177: 172 | C177: 2011 | D177: 2011-08-15 | E177: 75.5 | F177: 0.5483870968 | G177: 0.3007284079 | H177: 71.5 | I177: 78 | J177: 0 | K177: 0
B178: 173 | C178: 2011 | D178: 2011-08-14 | E178: 71.5 | F178: =F147 -> 0.5806451613 | G178: 0.3371488033 | H178: 78 | I178: 75 | J178: 0 | K178: 0
B179: 174 | C179: 2011 | D179: 2011-08-13 | E179: 78 | F179: 0.6129032258 | G179: 0.3756503642 | H179: 75 | I179: 77.5 | J179: 0 | K179: 0
B180: 175 | C180: 2011 | D180: 2011-08-12 | E180: 75 | F180: 0.6451612903 | G180: 0.4162330905 | H180: 77.5 | I180: 80 | J180: 0 | K180: 0
B181: 176 | C181: 2011 | D181: 2011-08-11 | E181: 77.5 | F181: 0.6774193548 | G181: 0.4588969823 | H181: 80 | I181: 78 | J181: 0 | K181: 0
B182: 177 | C182: 2011 | D182: 2011-08-10 | E182: 80 | F182: 0.7096774194 | G182: 0.5036420395 | H182: 78 | I182: 85 | J182: 0 | K182: 0
B183: 178 | C183: 2011 | D183: 2011-08-09 | E183: 78 | F183: 0.7419354839 | G183: 0.5504682622 | H183: 85 | I183: 85 | J183: 0 | K183: 0
B184: 179 | C184: 2011 | D184: 2011-08-08 | E184: 85 | F184: 0.7741935484 | G184: 0.5993756504 | H184: 85 | I184: 78.5 | J184: 0 | K184: 0
B185: 180 | C185: 2011 | D185: 2011-08-07 | E185: 85 | F185: 0.8064516129 | G185: 0.650364204 | H185: 78.5 | I185: 77.5 | J185: 0 | K185: 0
B186: 181 | C186: 2011 | D186: 2011-08-06 | E186: 78.5 | F186: 0.8387096774 | G186: 0.703433923 | H186: 77.5 | I186: 76.5 | J186: 0 | K186: 0
B187: 182 | C187: 2011 | D187: 2011-08-05 | E187: 77.5 | F187: 0.8709677419 | G187: 0.7585848075 | H187: 76.5 | I187: 78 | J187: 0 | K187: 0
B188: 183 | C188: 2011 | D188: 2011-08-04 | E188: 76.5 | F188: 0.9032258065 | G188: 0.8158168574 | H188: 78 | I188: 83 | J188: 0 | K188: 0
B189: 184 | C189: 2011 | D189: 2011-08-03 | E189: 78 | F189: 0.935483871 | G189: 0.8751300728 | H189: 83 | I189: 85.5 | J189: 0 | K189: 0
B190: 185 | C190: 2011 | D190: 2011-08-02 | E190: 83 | F190: 0.9677419355 | G190: 0.9365244537 | H190: 85.5 | I190: 0 | J190: 0 | K190: 1
B191: 186 | C191: 2011 | D191: 2011-08-01 | E191: 85.5 | F191: 1 | G191: 1 | H191: 0 | I191: 0 | J191: 1 | K191: 0
B192: 187 | C192: =C161-1 -> 2010 | D192: =DATE(C192, 8, 31) -> 2010-08-31 | E192: 85.5 | F192: =F161 -> 0.03225806452 | G192: =G161 -> 0.001040582726 | H192: =E193 -> 83.5 | I192: =E194 -> 79 | J192: 0 | K192: 0
B193: 188 | C193: 2010 | D193: =D192-1 -> 2010-08-30 | E193: 83.5 | F193: =F162 -> 0.06451612903 | G193: 0.004162330905 | H193: 79 | I193: 72 | J193: 0 | K193: 0
B194: 189 | C194: 2010 | D194: 2010-08-29 | E194: 79 | F194: 0.09677419355 | G194: 0.009365244537 | H194: 72 | I194: 70.5 | J194: 0 | K194: 0
B195: 190 | C195: 2010 | D195: 2010-08-28 | E195: 72 | F195: 0.1290322581 | G195: 0.01664932362 | H195: 70.5 | I195: 75.5 | J195: 0 | K195: 0
B196: 191 | C196: 2010 | D196: 2010-08-27 | E196: 70.5 | F196: 0.1612903226 | G196: 0.02601456816 | H196: 75.5 | I196: 68 | J196: 0 | K196: 0
B197: 192 | C197: 2010 | D197: 2010-08-26 | E197: 75.5 | F197: 0.1935483871 | G197: 0.03746097815 | H197: 68 | I197: 68 | J197: 0 | K197: 0
B198: 193 | C198: 2010 | D198: 2010-08-25 | E198: 68 | F198: 0.2258064516 | G198: 0.05098855359 | H198: 68 | I198: 68.5 | J198: 0 | K198: 0
B199: 194 | C199: 2010 | D199: 2010-08-24 | E199: 68 | F199: 0.2580645161 | G199: 0.06659729448 | H199: 68.5 | I199: 76 | J199: 0 | K199: 0
B200: =B199+1 -> 195 | C200: 2010 | D200: 2010-08-23 | E200: 68.5 | F200: 0.2903225806 | G200: 0.08428720083 | H200: 76 | I200: 73.5 | J200: 0 | K200: 0
B201: 196 | C201: 2010 | D201: 2010-08-22 | E201: 76 | F201: 0.3225806452 | G201: 0.1040582726 | H201: 73.5 | I201: 80.5 | J201: 0 | K201: 0
B202: 197 | C202: 2010 | D202: 2010-08-21 | E202: 73.5 | F202: 0.3548387097 | G202: 0.1259105099 | H202: 80.5 | I202: 78 | J202: 0 | K202: 0
B203: 198 | C203: 2010 | D203: 2010-08-20 | E203: 80.5 | F203: 0.3870967742 | G203: 0.1498439126 | H203: 78 | I203: 77 | J203: 0 | K203: 0
... 329 more rows

Sheet ols
B2: TAB: OLS REGRESSION OUTPUT
B4: parameters | D4: add-constant | E4: 1
D5: =_xll.AC.data.map(D4:D4, E4:E4) -> java.util.LinkedHashMap@Sat, 24 Nov 2018 15:50:22:186..4203385192834111968 | H5: =_xll.AC.data.size(D5, 1) -> 1
B7: y | D7: =_xll.AC.data.list_x(OFFSET(data!E6, 0, 0, F15, 1), 1, 1) -> java.util.ArrayList@Sat, 24 Nov 2018 15:50:15:622..2102760049260352279 | H7: =_xll.AC.data.size(D7, 1) -> 527
B8: X | D8: =_xll.AC.data.list_xx(OFFSET(data!F6, 0, 0, F15, F14), 1) -> java.util.ArrayList@Sat, 24 Nov 2018 16:03:04:769..3882376410105538840 | H8: =_xll.AC.data.size(D8, 1) -> 6 | I8: =_xll.AC.data.size(D8, 2) -> 527
B9: regression output | D9: =_xll.AC.stats.reg.ols(D7, D8, $D$5) -> jmathkr.lib.jmc.objects.stats.regression.linear.OutputLReg@Sat, 24 Nov 2018 16:03:04:769..8955695016215183742
K12: =config!G10 -> statistics
K13: =_xll.AC.stats.reg._get(D9, K12, 0) -> keys | L13: values
B14: Number of explanatory variables | F14: 6 | K14: res.abs.max | L14: 11.13908078
B15: Sample size | F15: =COUNT(data!D6:D1000) -> 527 | K15: SST | L15: 13802.18658
K16: SSR | L16: 6971.323212
B17: =config!G9 -> table-standard | K17: SSE | L17: 6830.863369
D18: =_xll.AC.stats.reg._get(D9, B17, 0) -> coefficient | E18: stdev | F18: t.stats | G18: P.value | H18: CI.left | I18: CI.right | K18: MSE | L18: 13.13627571
B19: 1 | C19: constant | D19: 27.77260662 | E19: 2.749804515 | F19: 10.09984763 | G19: 0 | H19: 22.38298977 | I19: 33.16222347 | K19: r.squared | L19: 0.5050883185
B20: =B19+1 -> 2 | C20: =OFFSET(data!$F$5, 0, B20-2) -> Linear | D20: -1.749243939 | E20: 2.508681638 | F20: -0.6972761757 | G20: 0.4859415933 | H20: -6.666259949 | I20: 3.167772072 | K20: adj.r.squared | L20: 0.4993377874
B21: =B20+1 -> 3 | C21: =OFFSET(data!$F$5, 0, B21-2) -> Quadratic | D21: 3.193868142 | E21: 2.51161444 | F21: 1.271639505 | G21: 0.204069683 | H21: -1.728896159 | I21: 8.116632444 | K21: sigma.squared | L21: 13.13627571
B22: 4 | C22: =OFFSET(data!$F$5, 0, B22-2) -> EWR.lag1 | D22: 0.8008497427 | E22: 0.04488385682 | F22: 17.84271227 | G22: 0 | H22: 0.7128773833 | I22: 0.8888221021 | K22: sigma | L22: 3.624400048
B23: 5 | C23: =OFFSET(data!$F$5, 0, B23-2) -> EWR.lag2 | D23: -0.165138317 | E23: 0.04546602312 | F23: -3.632125832 | G23: 0.0003089600531 | H23: -0.2542517223 | I23: -0.07602491172 | K23: df | L23: 520
B24: 6 | C24: =OFFSET(data!$F$5, 0, B24-2) -> Aug.1st | D24: 49.60629859 | E24: 3.086265555 | F24: 16.07324377 | G24: 0 | H24: 43.5572181 | I24: 55.65537908 | K24: n | L24: 527
B25: 7 | C25: =OFFSET(data!$F$5, 0, B25-2) -> Aug.2nd | D25: -12.7855523 | E25: 3.735386834 | F25: -3.422818804 | G25: 0.0006686076723 | H25: -20.10691049 | I25: -5.464194102 | K25: rank | L25: 7

Sheet fitted
B2: TAB: FITTED VALUES
B4: Regression A
C6: =config!G23 -> y | D6: =config!G24 -> fitted.values | E6: =config!G25 -> residuals
B7: # | C7: y | D7: yhat | E7: res
B8: =data!B6 -> 1 | C8: =_xll.AC.stats.reg._get(ols!$D$9, C6, 0) -> 83 | D8: =_xll.AC.stats.reg._get(ols!$D$9, D6, 0) -> 75.36885396 | E8: =_xll.AC.stats.reg._get(ols!$D$9, E6, 0) -> 7.631146045
B9: =IF(C9="", "", B8+1) -> 2 | C9: 76.5 | D9: 80.57461119 | E9: -4.074611188
B10: =IF(C10="", "", B9+1) -> 3 | C10: 82.45 | D10: 78.16403773 | E10: 4.285962273
B11: 4 | C11: 79.5 | D11: 77.27091355 | E11: 2.229086449
B12: 5 | C12: 79.55 | D12: 82.85582307 | E12: -3.305823074
B13: 6 | C13: 85 | D13: 76.95302555 | E13: 8.046974449
B14: 7 | C14: 77.45 | D14: 76.96439704 | E14: 0.4856029562
B15: 8 | C15: 76.46 | D15: 72.59232974 | E15: 3.867670256
B16: 9 | C16: 71.51 | D16: 73.45350788 | E16: -1.94350788
B17: 10 | C17: 73.94 | D17: 78.8852966 | E17: -4.945296596
B18: 11 | C18: 80.51 | D18: 77.69627826 | E18: 2.813721735
B19: 12 | C19: 79.52 | D19: 80.02441825 | E19: -0.5044182536
B20: 13 | C20: 82 | D20: 78.16740141 | E20: 3.832598586
B21: 14 | C21: 80.05 | D21: 79.26529892 | E21: 0.7847010776
B22: 15 | C22: 82 | D22: 81.6431496 | E22: 0.3568503988
B23: 16 | C23: 85.01 | D23: 81.5384524 | E23: 3.471547598
B24: 17 | C24: 85.45 | D24: 84.03429187 | E24: 1.415708134
B25: 18 | C25: 88.5 | D25: 84.58960153 | E25: 3.910398466
B26: 19 | C26: 88.5 | D26: 82.25359399 | E26: 6.246406009
B27: 20 | C27: 85.5 | D27: 82.82384898 | E27: 2.676151022
B28: 21 | C28: 85.5 | D28: 81.30891016 | E28: 4.191089841
B29: 22 | C29: 82.49 | D29: 77.35167171 | E29: 5.138328289
B30: 23 | C30: 77.55 | D30: 77.538975 | E30: 0.01102500204
B31: 24 | C31: 78.08 | D31: 79.0059546 | E31: -0.9259545982
B32: 25 | C32: 80.08 | D32: 81.24536878 | E32: -1.165368778
B33: 26 | C33: 81.5 | D33: 77.01977609 | E33: 4.480223908
B34: 27 | C34: 75.47 | D34: 74.76096979 | E34: 0.7090302147
B35: 28 | C35: 72.5 | D35: 74.72384725 | E35: -2.223847249
B36: 29 | C36: 72.5 | D36: 75.400341 | E36: -2.900341001
B37: 30 | C37: 73.49 | D37: 76.34910392 | E37: -2.859103925
B38: 31 | C38: 75 | D38: 78.82352941 | E38: -3.823529412
B39: 32 | C39: 84.5 | D39: 78.51868962 | E39: 5.981310385
B40: 33 | C40: 79 | D40: 76.08210454 | E40: 2.917895463
B41: 34 | C41: 75.5 | D41: 73.87503206 | E41: 1.624967941
B42: 35 | C42: 73 | D42: 74.39501149 | E42: -1.395011491
B43: 36 | C43: 74 | D43: 74.33123286 | E43: -0.3312328593
B44: 37 | C44: 75.5 | D44: 81.06085946 | E44: -5.560859457
B45: 38 | C45: 83 | D45: 78.02179779 | E45: 4.978202208
B46: 39 | C46: 78.5 | D46: 74.79940294 | E46: 3.700597063
B47: 40 | C47: 75 | D47: 76.30618435 | E47: -1.306184347
B48: 41 | C48: 77.5 | D48: 78.55031423 | E48: -1.050314231
B49: 42 | C49: 80.5 | D49: 79.44709907 | E49: 1.052900928
B50: 43 | C50: 81.5 | D50: 78.57127216 | E50: 2.928727841
B51: 44 | C51: 81 | D51: 80.83534295 | E51: 0.1646570537
B52: 45 | C52: 84 | D52: 81.83463785 | E52: 2.165362149
B53: 46 | C53: 85 | D53: 81.56915687 | E53: 3.430843128
B54: 47 | C54: 84 | D54: 79.95633085 | E54: 4.043669149
B55: 48 | C55: 81 | D55: 76.40575476 | E55: 4.594245242
B56: 49 | C56: 76.5 | D56: 76.217942 | E56: 0.2820580009
B57: 50 | C57: 76.5 | D57: 77.73346577 | E57: -1.233465774
B58: 51 | C58: 78 | D58: 76.93565645 | E58: 1.064343553
B59: 52 | C59: 76.5 | D59: 75.00094679 | E59: 1.49905321
B60: 53 | C60: 74.5 | D60: 77.58496869 | E60: -3.084968686
B61: 54 | C61: 77 | D61: 75.02784154 | E61: 1.97215846
B62: 55 | C62: 74 | D62: 76.32889268 | E62: -2.328892679
B63: 56 | C63: 75.5 | D63: 75.7747629 | E63: -0.2747629039
B64: 57 | C64: 75.5 | D64: 78.84352486 | E64: -3.34352486
B65: 58 | C65: 79.5 | D65: 80.08194774 | E65: -0.581947745
B66: 59 | C66: 81 | D66: 81.02158281 | E66: -0.0215828061
B67: 60 | C67: 81.5 | D67: 78.65705486 | E67: 2.842945136
B68: 61 | C68: 79 | D68: 81.95505212 | E68: -2.955052124
B69: 62 | C69: 82 | D69: 78.82352941 | E69: 3.176470588
B70: 63 | C70: 82 | D70: 72.21930267 | E70: 9.780697325
B71: 64 | C71: 70 | D71: 71.51229263 | E71: -1.512292635
B72: 65 | C72: 70 | D72: 73.6850519 | E72: -3.6850519
B73: 66 | C73: 74 | D73: 78.86983331 | E73: -4.869833313
B74: =IF(C74="", "", B73+1) -> 67 | C74: 80 | D74: 77.4191772 | E74: 2.580822802
B75: 68 | C75: 77.5 | D75: 74.92661083 | E75: 2.573389167
B76: 69 | C76: 74 | D76: 73.47682773 | E76: 0.5231722669
B77: 70 | C77: 72 | D77: 72.50426471 | E77: -0.5042647098
B78: 71 | C78: 71 | D78: 73.14004814 | E78: -2.14004814
B79: 72 | C79: 72 | D79: 73.4522019 | E79: -1.452201904
B80: 73 | C80: 73 | D80: 76.44610118 | E80: -3.446101182
B81: 74 | C81: 76 | D81: 73.49800167 | E81: 2.501998325
B82: 75 | C82: 72.5 | D82: 73.99523466 | E82: -1.49523466
B83: 76 | C83: 73.5 | D83: 76.62107089 | E83: -3.121070892
B84: 77 | C84: 75.5 | D84: 72.26877204 | E84: 3.231227959
B85: 78 | C85: 69.5 | D85: 69.57012604 | E85: -0.0701260386
B86: 79 | C86: 67 | D86: 72.23636773 | E86: -5.236367727
B87: 80 | C87: 71.5 | D87: 77.34906838 | E87: -5.849068376
B88: 81 | C88: 77.5 | D88: 76.13176629 | E88: 1.368233712
B89: 82 | C89: 76 | D89: 76.68794897 | E89: -0.687948971
B90: 83 | C90: 76.5 | D90: 76.28479056 | E90: 0.2152094379
B91: 84 | C91: 76 | D91: 77.34968213 | E91: -1.349682132
B92: 85 | C92: 76.5 | D92: 74.14442264 | E92: 2.355577361
B93: 86 | C93: 73 | D93: 76.2339026 | E93: -3.233902599
B94: 87 | C94: 76 | D94: 78.34245045 | E94: -2.342450449
B95: 88 | C95: 78.5 | D95: 78.62065923 | E95: -0.1206592272
B96: 89 | C96: 78.5 | D96: 78.7652185 | E96: -0.2652184988
B97: 90 | C97: 77.5 | D97: 75.13504166 | E97: 2.364958342
B98: 91 | C98: 72.5 | D98: 72.99337935 | E98: -0.4933793486
B99: 92 | C99: 71 | D99: 78.35122828 | E99: -7.351228282
B100: 93 | C100: 77.5 | D100: 78.82352941 | E100: -1.323529412
B101: 94 | C101: 80 | D101: 77.63527071 | E101: 2.364729286
B102: 95 | C102: 78 | D102: 75.57426866 | E102: 2.425731336
B103: 96 | C103: 76 | D103: 77.12373742 | E103: -1.123737425
B104: 97 | C104: 78.5 | D104: 79.83582137 | E104: -1.335821372
B105: 98 | C105: 81 | D105: 76.94034717 | E105: 4.059652827
B106: 99 | C106: 76.5 | D106: 73.53009215 | E106: 2.969907848
B107: 100 | C107: 72.05 | D107: 71.85028641 | E107: 0.1997135948
B108: 101 | C108: 71 | D108: 76.01309847 | E108: -5.013098472
B109: 102 | C109: 76 | D109: 74.46919831 | E109: 1.530801693
B110: 103 | C110: 75 | D110: 78.49258691 | E110: -3.492586915
B111: 104 | C111: 79.5 | D111: 77.41208924 | E111: 2.087910758
B112: 105 | C112: 77 | D112: 73.02742857 | E112: 3.972571434
B113: 106 | C113: 71.5 | D113: 72.88895013 | E113: -1.388950126
B114: 107 | C114: 71.5 | D114: 74.21852166 | E114: -2.718521664
B115: 108 | C115: 72.5 | D115: 71.93849541 | E115: 0.5615045929
B116: 109 | C116: 69.5 | D116: 71.66724048 | E116: -2.167240475
B117: 110 | C117: 69 | D117: 70.32923345 | E117: -1.32923345
B118: 111 | C118: 68.5 | D118: 74.86394999 | E118: -6.363949989
B119: 112 | C119: 74.5 | D119: 77.02925749 | E119: -2.529257494
B120: 113 | C120: 76.5 | D120: 74.20142762 | E120: 2.29857238
B121: 114 | C121: 73.49 | D121: 75.91831593 | E121: -2.428315933
B122: 115 | C122: 76.46 | D122: 80.25291022 | E122: -3.792910219
B123: 116 | C123: 80.95 | D123: 77.59552908 | E123: 3.354470915
B124: 117 | C124: 77 | D124: 76.27116536 | E124: 0.7288346372
B125: 118 | C125: 74.5 | D125: 73.57461476 | E125: 0.9253852435
B126: 119 | C126: 71 | D126: 73.35740858 | E126: -2.357408584
B127: 120 | C127: 71 | D127: 74.81460419 | E127: -3.814604191
B128: 121 | C128: 73 | D128: 75.82599622 | E128: -2.825996216
B129: 122 | C129: 74.6 | D129: 78.78930771 | E129: -4.189307707
B130: 123 | C130: 77 | D130: 73.54612983 | E130: 3.453870174
B131: 124 | C131: 71.5 | D131: 78.82352941 | E131: -7.323529412
B132: 125 | C132: 78.5 | D132: 73.96129863 | E132: 4.538701365
B133: 126 | C133: 73 | D133: 73.47715423 | E133: -0.4771542279
B134: 127 | C134: 74 | D134: 80.26940908 | E134: -6.26940908
B135: 128 | C135: 81.5 | D135: 76.39713585 | E135: 5.102864153
B136: 129 | C136: 76.5 | D136: 75.2394936 | E136: 1.260506397
B137: 130 | C137: 75.5 | D137: 76.65618587 | E137: -1.156185872
B138: =IF(C138="", "", B137+1) -> 131 | C138: 77.5 | D138: 77.85665948 | E138: -0.3566594754
B139: 132 | C139: 78.5 | D139: 75.84796016 | E139: 2.652039845
B140: 133 | C140: 76 | D140: 76.01317048 | E140: -0.01317047667
B141: 134 | C141: 76 | D141: 75.71445466 | E141: 0.2855453424
B142: 135 | C142: 75 | D142: 74.0683938 | E142: 0.9316062033
B143: 136 | C143: 72 | D143: 69.49375296 | E143: 2.506247039
B144: 137 | C144: 67.5 | D144: 73.41725055 | E144: -5.91725055
B145: 138 | C145: 73.5 | D145: 78.0203693 | E145: -4.520369297
B146: 139 | C146: 79 | D146: 77.34204253 | E146: 1.657957475
B147: 140 | C147: 78 | D147: 77.48363339 | E147: 0.5163666142
B148: 141 | C148: 77.5 | D148: 74.5563478 | E148: 2.943652203
B149: 142 | C149: 74.5 | D149: 77.00637082 | E149: -2.506370821
B150: 143 | C150: 78 | D150: 78.82732939 | E150: -0.8273293867
B151: 144 | C151: 80.5 | D151: 80.92748424 | E151: -0.4274842388
B152: 145 | C152: 82 | D152: 76.25994872 | E152: 5.74005128
B153: 146 | C153: 77 | D153: 80.19796263 | E153: -3.197962626
B154: 147 | C154: 81.5 | D154: 79.99807831 | E154: 1.501921687
B155: 148 | C155: 80 | D155: 74.53721303 | E155: 5.462786966
B156: 149 | C156: 74.5 | D156: 79.75416977 | E156: -5.254169775
B157: 150 | C157: 81.5 | D157: 82.51749694 | E157: -1.01749694
B158: 151 | C158: 84.5 | D158: 81.3533706 | E158: 3.146629404
B159: 152 | C159: 83 | D159: 82.37557482 | E159: 0.6244251841
B160: 153 | C160: 83.5 | D160: 80.93172854 | E160: 2.568271462
B161: 154 | C161: 80.5 | D161: 76.7495288 | E161: 3.750471204
B162: 155 | C162: 75.5 | D162: 78.82352941 | E162: -3.323529412
B163: 156 | C163: 74.5 | D163: 74.55170367 | E163: -0.05170366552
B164: 157 | C164: 72.5 | D164: 70.4060081 | E164: 2.093991899
B165: 158 | C165: 68 | D165: 71.77791762 | E165: -3.777917623
B166: 159 | C166: 71 | D166: 76.30214577 | E166: -5.302145768
B167: 160 | C167: 77 | D167: 77.80718115 | E167: -0.8071811481
B168: 161 | C168: 78.5 | D168: 76.84616603 | E168: 1.653833969
B169: 162 | C169: 76.5 | D169: 73.71211429 | E169: 2.787885713
B170: 163 | C170: 72.5 | D170: 72.89226866 | E170: -0.3922686599
B171: 164 | C171: 72 | D171: 74.06877344 | E171: -2.068773436
B172: 165 | C172: 74.5 | D172: 78.49258691 | E172: -3.992586915
B173: 166 | C173: 79.5 | D173: 76.58639766 | E173: 2.913602343
B174: 167 | C174: 77 | D174: 75.95827822 | E174: 1.041721781
B175: 168 | C175: 76.5 | D175: 77.26878187 | E175: -0.7687818679
B176: 169 | C176: 78 | D176: 77.56221711 | E176: 0.4377828907
B177: 170 | C177: 77.5 | D177: 74.06849532 | E177: 3.431504683
B178: 171 | C178: 73.5 | D178: 76.37734885 | E178: -2.877348851
B179: 172 | C179: 75.5 | D179: 72.15379857 | E179: 3.346201431
B180: 173 | C180: 71.5 | D180: 77.91463156 | E180: -6.414631564
B181: 174 | C181: 78 | D181: 75.16577823 | E181: 2.834221772
B182: 175 | C182: 75 | D182: 76.82824545 | E182: -1.828245446
B183: 176 | C183: 77.5 | D183: 79.24048206 | E183: -1.740482057
B184: 177 | C184: 80 | D184: 76.56929694 | E184: 3.430703058
B185: 178 | C185: 78 | D185: 82.2683747 | E185: -4.268374698
B186: 179 | C186: 85 | D186: 83.44155028 | E186: 1.558449717
B187: 180 | C187: 85 | D187: 78.50758877 | E187: 6.492411234
B188: 181 | C188: 78.5 | D188: 77.9849478 | E188: 0.5150521985
B189: 182 | C189: 77.5 | D189: 77.05610801 | E189: 0.4438919876
B190: 183 | C190: 76.5 | D190: 77.55805544 | E190: -1.058055439
B191: 184 | C191: 78 | D191: 81.28246972 | E191: -3.282469725
B192: 185 | C192: 83 | D192: 84.75802622 | E192: -1.758026223
B193: 186 | C193: 85.5 | D193: 78.82352941 | E193: 6.676470588
B194: 187 | C194: 85.5 | D194: 81.54452935 | E194: 3.955470652
B195: 188 | C195: 83.5 | D195: 79.05021695 | E195: 4.449783047
B196: 189 | C196: 79 | D196: 73.65216643 | E196: 5.347833574
B197: 190 | C197: 72 | D197: 71.59203739 | E197: 0.4079626088
B198: 191 | C198: 70.5 | D198: 76.80830761 | E198: -6.308307615
B199: 192 | C199: 75.5 | D199: 70.78206564 | E199: 4.717934355
B200: 193 | C200: 68 | D200: 70.68627455 | E200: -2.686274555
B201: 194 | C201: 68 | D201: 69.84158708 | E201: -1.841587085
B202: =IF(C202="", "", B201+1) -> 195 | C202: 68.5 | D202: 76.26087795 | E202: -7.760877952
B203: 196 | C203: 76 | D203: 73.10950435 | E203: 2.890495651
... 330 more rows

Sheet matrices
B2: TAB: MATRICES CONSTRUCTED IN REGRESSION ANALYSIS
B5: =config!G27 -> XXT | K5: =config!G26 -> SIGMA
B6: XX | C6: 1 | D6: =C6+1 -> 2 | E6: =D6+1 -> 3 | F6: =E6+1 -> 4 | G6: 5 | H6: 6 | I6: 7 | K6: COV = σ2 (XX)-1 / n | L6: 1 | M6: =L6+1 -> 2 | N6: =M6+1 -> 3 | O6: =N6+1 -> 4 | P6: 5 | Q6: 6 | R6: 7
B7: 1 | C7: =_xll.AC.stats.reg._get(ols!$D$9, B5, 1) -> 1 | D7: 0.5161290323 | E7: 0.349635796 | F7: 74.3759203 | G7: 71.9470778 | H7: 0.03225806452 | I7: 0.03225806452 | K7: 1 | L7: =_xll.AC.stats.reg._get(ols!$D$9, K5, 1) -> 7.561424873 | M7: -0.7634420015 | N7: 1.153138111 | O7: -0.04733532679 | P7: -0.05050912724 | Q7: -7.951120983 | R7: -4.171414549
B8: =B7+1 -> 2 | C8: 0.5161290323 | D8: 0.349635796 | E8: 0.2663891779 | F8: 37.58415988 | G8: 35.18493665 | H8: 0.03225806452 | I8: 0.03121748179 | K8: =K7+1 -> 2 | L8: -0.7634420015 | M8: 6.293483561 | N8: -6.095097386 | O8: 0.0006103661307 | P8: -0.005950369729 | Q8: 0.5650558269 | R8: 0.3330705766
B9: =B8+1 -> 3 | C9: 0.349635796 | D9: 0.2663891779 | E9: 0.2164758571 | F9: 24.79501962 | G9: 22.44762941 | H9: 0.03225806452 | I9: 0.03021046625 | K9: =K8+1 -> 3 | L9: 1.153138111 | M9: -6.095097386 | N9: 6.308207093 | O9: -0.003993095932 | P9: 0.002162024667 | Q9: -1.366247819 | R9: -0.8476970571
B10: =B9+1 -> 4 | C10: 74.3759203 | D10: 37.58415988 | E10: 24.79501962 | F10: 5741.187213 | G10: 5541.950517 | H10: 0 | I10: 2.542694497 | K10: =K9+1 -> 4 | L10: -0.04733532679 | M10: 0.0006103661307 | N10: -0.003993095932 | O10: 0.002014560603 | P10: -0.001383802552 | Q10: 0.05071805659 | R10: -0.1083104951
B11: 5 | C11: 71.9470778 | D11: 35.18493665 | E11: 22.44762941 | F11: 5541.950517 | G11: 5557.727062 | H11: 0 | I11: 0 | K11: 5 | L11: -0.05050912724 | M11: -0.005950369729 | N11: 0.002162024667 | O11: -0.001383802552 | P11: 0.002067159258 | Q11: 0.05429747231 | R11: 0.1633189618
B12: 6 | C12: 0.03225806452 | D12: 0.03225806452 | E12: 0.03225806452 | F12: 0 | G12: 0 | H12: 0.03225806452 | I12: 0 | K12: 6 | L12: -7.951120983 | M12: 0.5650558269 | N12: -1.366247819 | O12: 0.05071805659 | P12: 0.05429747231 | Q12: 9.525035075 | R12: 4.686041029
B13: 7 | C13: 0.03225806452 | D13: 0.03121748179 | E13: 0.03021046625 | F13: 2.542694497 | G13: 0 | H13: 0 | I13: 0.03225806452 | K13: 7 | L13: -4.171414549 | M13: 0.3330705766 | N13: -0.8476970571 | O13: -0.1083104951 | P13: 0.1633189618 | Q13: 4.686041029 | R13: 13.9531148
K15: std-dev | L15: =SQRT(OFFSET($K$6, L6, L6)) -> 2.749804515 | M15: =SQRT(OFFSET($K$6, M6, M6)) -> 2.508681638 | N15: 2.51161444 | O15: 0.04488385682 | P15: 0.04546602312 | Q15: 3.086265555 | R15: 3.735386834
B16: =config!G28 -> XXT.inv | L16: =OFFSET(ols!$E$18, L6, 0) -> 2.749804515 | M16: =OFFSET(ols!$E$18, M6, 0) -> 2.508681638 | N16: =OFFSET(ols!$E$18, N6, 0) -> 2.51161444 | O16: =OFFSET(ols!$E$18, O6, 0) -> 0.04488385682 | P16: =OFFSET(ols!$E$18, P6, 0) -> 0.04546602312 | Q16: =OFFSET(ols!$E$18, Q6, 0) -> 3.086265555 | R16: =OFFSET(ols!$E$18, R6, 0) -> 3.735386834
B17: (XX)-1 | C17: 1 | D17: =C17+1 -> 2 | E17: =D17+1 -> 3 | F17: =E17+1 -> 4 | G17: 5 | H17: 6 | I17: 7
B18: 1 | C18: =_xll.AC.stats.reg._get(ols!$D$9, B16, 1) -> 303.3486047 | D18: -30.62770177 | E18: 46.2614974 | F18: -1.898994644 | G18: -2.026320903 | H18: -318.9824004 | I18: -167.3484567
B19: =B18+1 -> 2 | C19: -30.62770177 | D19: 252.4814422 | E19: -244.5226024 | F19: 0.02448661691 | G19: -0.2387164304 | H19: 22.66886196 | I19: 13.36209727
B20: =B19+1 -> 3 | C20: 46.2614974 | D20: -244.5226024 | E20: 253.0721196 | F20: -0.1601946855 | G20: 0.08673592308 | H20: -54.81101465 | I20: -34.00783898
B21: =B20+1 -> 4 | C21: -1.898994644 | D21: 0.02448661691 | E21: -0.1601946855 | F21: 0.08081997221 | G21: -0.05551527397 | H21: 2.034702713 | I21: -4.345191298
B22: 5 | C22: -2.026320903 | D22: -0.2387164304 | E22: 0.08673592308 | F22: -0.05551527397 | G22: 0.08293012061 | H22: 2.17830141 | I22: 6.552016321
B23: 6 | C23: -318.9824004 | D23: 22.66886196 | E23: -54.81101465 | F23: 2.034702713 | G23: 2.17830141 | H23: 382.124553 | I23: 187.9941984
B24: 7 | C24: -167.3484567 | D24: 13.36209727 | E24: -34.00783898 | F24: -4.345191298 | G24: 6.552016321 | H24: 187.9941984 | I24: 559.7698818

Sheet validate
B2: TAB: REGRESSION OUTPUT VALIDATION
B4: R Output
B5: Variable | C5: coefficient | D5: stdev | E5: t-stats | F5: P-value | G5: C-Left | H5: C-Right | J5: statistic | K5: value
B6: constant | C6: 27.77260662 | D6: 2.749804515 | E6: 10.09984763 | F6: 5.08489926e-22 | G6: 22.41048781 | H6: 33.13472542 | J6: df | K6: [7, 520, 7]
B7: Linear | C7: -1.749243939 | D7: 2.508681638 | E7: -0.6972761757 | F7: 0.4859415933 | G7: -6.641173133 | H7: 3.142685255 | J7: r.squared | K7: 0.505
B8: Quadratic | C8: 3.193868142 | D8: 2.51161444 | E8: 1.271639505 | F8: 0.204069683 | G8: -1.703780015 | H8: 8.0915163 | J8: adj.r.squared | K8: 0.499
B9: EWR.lag1 | C9: 0.8008497427 | D9: 0.04488385682 | E9: 17.84271227 | F9: 6.625856491e-56 | G9: 0.7133262219 | H9: 0.8883732635 | J9: sigma | K9: 3.624
B10: EWR.lag2 | C10: -0.165138317 | D10: 0.04546602312 | E10: -3.632125832 | F10: 0.0003089600531 | G10: -0.2537970621 | H10: -0.07647957195 | J10: fstatistic | K10: [88.449, 6, 520]
B11: Aug.1st | C11: 49.60629859 | D11: 3.086265555 | E11: 16.07324377 | F11: 1.726089036e-47 | G11: 43.58808076 | H11: 55.62451642
B12: Aug.2nd | C12: -12.7855523 | D12: 3.735386834 | E12: -3.422818804 | F12: 0.0006686076722 | G12: -20.06955662 | H12: -5.50154797
B14: OLS Output
C15: =ols!D18 -> coefficient | D15: =ols!E18 -> stdev | E15: =ols!F18 -> t.stats | F15: =ols!G18 -> P.value | G15: =ols!H18 -> CI.left | H15: =ols!I18 -> CI.right | J15: =ols!K13 -> keys | K15: =ols!L13 -> values
B16: =ols!C19 -> constant | C16: =ols!D19 -> 27.77260662 | D16: =ols!E19 -> 2.749804515 | E16: =ols!F19 -> 10.09984763 | F16: =ols!G19 -> 0 | G16: =ols!H19 -> 22.38298977 | H16: =ols!I19 -> 33.16222347 | J16: =ols!K14 -> res.abs.max | K16: =ols!L14 -> 11.13908078
B17: =ols!C20 -> Linear | C17: =ols!D20 -> -1.749243939 | D17: =ols!E20 -> 2.508681638 | E17: =ols!F20 -> -0.6972761757 | F17: =ols!G20 -> 0.4859415933 | G17: =ols!H20 -> -6.666259949 | H17: =ols!I20 -> 3.167772072 | J17: =ols!K15 -> SST | K17: =ols!L15 -> 13802.18658
B18: =ols!C21 -> Quadratic | C18: =ols!D21 -> 3.193868142 | D18: =ols!E21 -> 2.51161444 | E18: =ols!F21 -> 1.271639505 | F18: =ols!G21 -> 0.204069683 | G18: =ols!H21 -> -1.728896159 | H18: =ols!I21 -> 8.116632444 | J18: =ols!K16 -> SSR | K18: =ols!L16 -> 6971.323212
B19: =ols!C22 -> EWR.lag1 | C19: =ols!D22 -> 0.8008497427 | D19: =ols!E22 -> 0.04488385682 | E19: =ols!F22 -> 17.84271227 | F19: =ols!G22 -> 0 | G19: =ols!H22 -> 0.7128773833 | H19: =ols!I22 -> 0.8888221021 | J19: =ols!K17 -> SSE | K19: =ols!L17 -> 6830.863369
B20: =ols!C23 -> EWR.lag2 | C20: =ols!D23 -> -0.165138317 | D20: =ols!E23 -> 0.04546602312 | E20: =ols!F23 -> -3.632125832 | F20: =ols!G23 -> 0.0003089600531 | G20: =ols!H23 -> -0.2542517223 | H20: =ols!I23 -> -0.07602491172 | J20: =ols!K18 -> MSE | K20: =ols!L18 -> 13.13627571
B21: =ols!C24 -> Aug.1st | C21: =ols!D24 -> 49.60629859 | D21: =ols!E24 -> 3.086265555 | E21: =ols!F24 -> 16.07324377 | F21: =ols!G24 -> 0 | G21: =ols!H24 -> 43.5572181 | H21: =ols!I24 -> 55.65537908 | J21: =ols!K19 -> r.squared | K21: =ols!L19 -> 0.5050883185
B22: =ols!C25 -> Aug.2nd | C22: =ols!D25 -> -12.7855523 | D22: =ols!E25 -> 3.735386834 | E22: =ols!F25 -> -3.422818804 | F22: =ols!G25 -> 0.0006686076723 | G22: =ols!H25 -> -20.10691049 | H22: =ols!I25 -> -5.464194102 | J22: =ols!K20 -> adj.r.squared | K22: =ols!L20 -> 0.4993377874
J23: =ols!K21 -> sigma.squared | K23: =ols!L21 -> 13.13627571
J24: =ols!K22 -> sigma | K24: =ols!L22 -> 3.624400048
B25: Difference | J25: =ols!K23 -> df | K25: =ols!L23 -> 520
C26: =C15 -> coefficient | D26: =D15 -> stdev | E26: t.stats | F26: P.value | J26: =ols!K24 -> n | K26: =ols!L24 -> 527
B27: =B16 -> constant | C27: =C6-C16 -> 1.19602106e-10 | D27: =D6-D16 -> 5.862865748e-12 | E27: 2.196109961e-11 | F27: 5.08489926e-22 | J27: =ols!K25 -> rank | K27: =ols!L25 -> 7
B28: =B17 -> Linear | C28: =C7-C17 -> -8.103762106e-11 | D28: 1.678657213e-13 | E28: -3.225619771e-11 | F28: -2.007993771e-11
B29: Quadratic | C29: =C8-C18 -> 8.297584841e-11 | D29: 2.224886941e-13 | E29: 3.292432993e-11 | F29: -1.155014973e-11
B30: EWR.lag1 | C30: =C9-C19 -> -1.023514606e-12 | D30: 1.334349298e-14 | E30: -2.810907063e-11 | F30: 6.625856491e-56
B31: EWR.lag2 | C31: =C10-C20 -> -3.650135749e-13 | D31: 1.655620085e-14 | E31: -6.705747069e-12 | F31: -7.758713377e-15
B32: Aug.1st | C32: =C11-C21 -> -1.246718284e-10 | D32: 5.80557824e-12 | E32: -7.063150065e-11 | F32: 1.726089036e-47
B33: Aug.2nd | C33: =C12-C22 -> -4.073541504e-11 | D33: 1.299405028e-12 | E33: -9.714895555e-12 | F33: -2.349650422e-14

Sheet config
B2: TAB: CONFIGURATION FILE | E2: Calculation enabled | G2: TRUE
B5: Test connection | C5: =_xll.AC.test.connection() -> host: CA2013466W3; user: Konstantin.Rybakov; key: null
B8: Cell address | C8: Row count | D8: Col count | E8: Comment | G8: Output key | H8: Description
B9: =addressFla(ols!D18) -> 'ols'!$D$18 | C9: =ols!F14+2 -> 8 | D9: 6 | G9: table-standard | H9: Standard linear regression output table [coeff, stdev, t-stats, P-value, confidance band]
B10: =addressFla(fitted!C8) -> 'fitted'!$C$8 | C10: =ols!F15 -> 527 | D10: 1 | G10: statistics | H10: Basic linear regression summary statistics
B11: =addressFla(fitted!D8) -> 'fitted'!$D$8 | C11: =C10 -> 527 | D11: =D10 -> 1 | G11: res.abs.max | H11: Maximum absolute value of the residuals
B12: =addressFla(fitted!E8) -> 'fitted'!$E$8 | C12: =C11 -> 527 | D12: =D11 -> 1 | G12: SST | H12: Total sum of squares
B13: =addressFla(matrices!C7) -> 'matrices'!$C$7 | C13: =ols!F14+1 -> 7 | D13: =C13 -> 7 | G13: SSR | H13: Explained sum of squares
B14: =addressFla(matrices!C18) -> 'matrices'!$C$18 | C14: =C13 -> 7 | D14: =D13 -> 7 | G14: SSE | H14: Error sum of squares
B15: =addressFla(matrices!L7) -> 'matrices'!$L$7 | C15: =C14 -> 7 | D15: 7 | G15: MSE | H15: Mean sum of squares error
G16: r.squared | H16: R2 goodness-of-fit statistics
G17: adj.r.squared | H17: Adjusted R2 goodness-of-fit statistics
G18: sigma.squared | H18: Residuals variance
G19: sigma | H19: Residuals standard error
B20: Graph configuration | G20: df | H20: Degees of freedom: df = n-rank
G21: n | H21: Sample size
B22: line | C22: yes | E22: Set to yes/no to set line visible or non-visible | G22: rank | H22: Number of exogenous variables (including constant)
B23: line-size | C23: 1.5 | E23: Set line size | G23: y | H23: Endogenous variable
B24: marker | C24: yes | E24: Set to yes/no to set markers visible or non-visible | G24: fitted.values | H24: Fitted regression values
B25: marker-size | C25: 2 | E25: Set markers size | G25: residuals | H25: Regression residuals: residuals = y - fitted.values
B26: exclude-series | E26: List of series names that are not modified (referenced by series legend) | G26: SIGMA | H26: Coefficients covariance matrix
B27: exclude-charts | E27: List of charts that are not modified (referenced by chart index) | G27: XXT | H27: Matrix X XT, where X is the matrix of exogenous variables with dimensions [k,n - sample size]
B28: reference-chart | C28: 1 | E28: Chart index used for series colors mar]tching | G28: XXT.inv | H28: Inverse of the XX matrix
B29: match-colors | C29: yes | E29: Set yes if colors of each series is matched to the series color in the reference chart

Sheet guide
B2: Package: ac.stats.reg Available functions: OutputLReg res = ols(y[], X[][], 0/1) where y[] is a range that represents dependable variable, X[][] is a range that represents exogenous variable, and 0/1 is an indicator whether constant is added or not to the regression; double[][] (double[]) get(OutputLReg res, String key) where key represents the key for a specific retrieved field. The following keys can be used: 1. table-standard: standard table output of the regression output; 2. statistics: regression statistics; 3. y, fitted.values, residuals: dependent and projected variablles and residuals; 4. XXT, XXT-inv, SIGMA: matrices (XT x X), (XT x X)-1 and covariance matrix of estimated coefficients;
